[Event "SixDays Budapest GM-C 10-2024"]
[Site "Budapest"]
[Date "2024.10.01"]
[Round "3.3"]
[White "Susilodinata, Andrean"]
[Black "Pacher, Milan"]
[Result "1-0"]
[ECO "C11"]
[WhiteElo "2393"]
[BlackElo "2343"]
[Annotator "RC"]
[PlyCount "57"]
[EventDate "2024.09.24"]
[EventType "tourn"]
[EventCountry "HUN"]
[SourceTitle "playchess.com"]
[Source "ChessBase"]
[SourceQuality "1"]
[TimeControl "5400+30"]

1. d4 {[%emt 0:00:03]} Nf6 {[%emt 0:08:43]} 2. Nc3 {[%emt 0:00:06]} e6 {[%emt 0:00:14]} 3. e4 {[%emt 0:00:04]} d5 {[%emt 0:00:05]} 4. e5 {[%emt 0:00:29]} Nfd7 {[%emt 0:00:02]} 5. f4 {[%emt 0:00:07]} c5 {[%emt 0:00:04]} 6. Nf3 {[%emt 0:00:04]} Nc6 {[%emt 0:00:02]} 7. Be3 {[%emt 0:00:04]} cxd4 {[%emt 0:00:24]} 8. Nxd4 {[%emt 0:00:03]} Bc5 {[%emt 0:00:06]} 9. Qd2 {[%emt 0:00:14]} Nxd4 {[%emt 0:00:30]} 10. Bxd4 {[%emt 0:00:02]} Bxd4 {[%emt 0:00:04]} 11. Qxd4 {[%emt 0:00:05]} Qb6 {[%emt 0:00:02]} 12. Nb5 {[%emt 0:00:24]} Qxd4 {[%emt 0:00:29]} 13. Nxd4 {[%emt 0:00:02]} Ke7 {[%emt 0:00:08]} 14. h4 {[%emt 0:01:49]} h5 {[%emt 0:00:34]} 15. Rh3 {[%emt 0:02:25]} Nb6 {[%emt 0:03:40]} 16. Rg3 {[%emt 0:09:53]} g6 {[%emt 0:00:18]} 17. a4 {[%emt 0:00:08]} Bd7 {[%emt 0:00:58]} 18. b3 {[%emt 0:32:35]} a5 {[%emt 0:00:05]} 19. Kd2 {[%emt 0:00:05]} Rac8 {[%emt 0:00:20]} 20. Bd3 {[%emt 0:09:33]} Rhd8 {[%emt 0:01:33]} 21. Rg5 {[%emt 0:03:02]} Be8 {[%emt 0:00:21]} 22. g4 {[%emt 0:04:33]} hxg4 {[%emt 0:00:37]} 23. h5 {[%emt 0:00:52]} gxh5 {[%emt 0:00:28]} 24. f5 {[%emt 0:00:13]} Bc6 {[%emt 0:13:34]} 25. f6+ {[%emt 0:04:00]} Kd7 {[%emt 0:00:04]} 26. Rg7 {[%emt 0:00:18]} Rf8 {[%emt 0:07:35]} 27. Bg6 {[%emt 0:00:26]} Ke8 {[%emt 0:00:23]} 28. Nxe6 {[%emt 0:00:36]} fxg6 {[%emt 0:00:04]} 29. Re7# {[%emt 0:00:04]} 1-0

[Event "SixDays Budapest GM-C 10-2024"]
[Site "Budapest"]
[Date "2024.10.01"]
[Round "3.4"]
[White "Laddha, Shubh Jayesh"]
[Black "Mohammad Fahad, Rahman"]
[Result "0-1"]
[ECO "B33"]
[WhiteElo "2308"]
[BlackElo "2419"]
[Annotator "TA"]
[PlyCount "94"]
[EventDate "2024.09.24"]
[EventType "tourn"]
[EventCountry "HUN"]
[SourceTitle "playchess.com"]
[Source "ChessBase"]
[SourceQuality "1"]
[TimeControl "5400+30"]

{[%evp 16,94,34,-4,16,0,3,0,7,0,0,0,0,0,20,22,14,18,16,-32,-6,-8,-3,-6,-6,-15,-12,-28,-28,-27,-40,-21,-35,-30,-36,-20,0,0,0,-72,-79,-65,-74,-91,-33,-34,-62,-180,-176,-225,-206,-223,-198,-216,-214,-227,-204,-372,-373,-389,-416,-418,-415,-507,-501,-510,-501,-592,-1127,-1401,-1273,-5046,-3653,-1524,-1061,-29977,-29977,-29982,-29983,-29985,-29986]} 1. e4 {[%emt 0:00:04]} c5 {[%emt 0:04:33]} 2. Nf3 {[%emt 0:00:03][%cal Bg1f3,Bf3d4,Bd4b5,Bb5a3,Ba3b1,Bb1d2,Bd2c4][%mdl 32]} Nc6 {[%emt 0:00:07]} 3. d4 {[%emt 0:00:26]} cxd4 {[%emt 0:00:40]} 4. Nxd4 {[%emt 0:00:03]} Nf6 {[%emt 0:00:17]} 5. Nc3 {[%emt 0:00:05]} e5 {[%emt 0:00:10]} 6. Ndb5 {[%emt 0:00:04]} d6 {[%emt 0:00:09]} 7. Bg5 {[%emt 0:00:05]} a6 {[%emt 0:00:06]} 8. Na3 {[%emt 0:00:03]} b5 {[%emt 0:00:08]} 9. Nab1 {[%emt 0:00:16]} Ne7 {[%emt 0:00:36]} 10. a3 {[%emt 0:03:52]} Bb7 {[%emt 0:03:29]} 11. Nd2 {[%emt 0:07:27]} d5 {[%emt 0:00:46] The position is equal.} 12. exd5 {[%emt 0:03:48]} Nexd5 {[%emt 0:00:33]} 13. Nxd5 {[%emt 0:01:32]} Qxd5 {[%emt 0:02:44]} 14. c4 {[%emt 0:02:18]} bxc4 {[%emt 0:05:08]} 15. Nxc4 {[%emt 0:07:57]} Bc5 {[%emt 0:02:18]} 16. Qxd5 {[%emt 0:04:34]} Bxd5 {[%emt 0:00:28]} 17. O-O-O {[%emt 0:03:32]} (17. Nxe5 $11 {is more appropriate.} O-O 18. Bxf6 gxf6 19. Rd1) 17... Bd4 {[%emt 0:15:42] White should prevent ...Rc8.} 18. Be3 {[%emt 0:11:10]} Rc8 {[%emt 0:05:46]} 19. Bxd4 {[%emt 0:03:33]} Bxc4 {[%emt 0:00:37]} 20. Bc3 {[%emt 0:09:36]} Ne4 {[%emt 0:02:00]} 21. Bxc4 {[%emt 0:02:23]} Rxc4 {[%emt 0:00:20]} 22. Rhe1 {[%emt 0:01:08] And now f3 would win.} O-O {[%emt 0:12:38]} (22... Nxf2 23. Rxe5+ Kf8 24. Rd8#) 23. Kc2 {[%emt 0:02:50]} Rfc8 {[%emt 0:03:46][%cal Re4c3]} 24. Re3 {[%emt 0:01:19]} Nxf2 {[%emt 0:02:27]} 25. Rd6 {[%emt 0:00:55]} Ne4 {[%emt 0:04:02]} 26. Rxa6 {[%emt 0:02:55]} f5 {[%emt 0:00:05]} 27. g3 {[%emt 0:11:10]} (27. Ra5 $11 {remains equal.} f4 28. Rf3 Nxc3 29. Rxc3) 27... f4 $1 $36 {[%emt 0:04:00][%mdl 2048] Black is on the roll.} 28. gxf4 {[%emt 0:00:52]} exf4 {[%emt 0:00:03]} 29. Rh3 {[%emt 0:00:54]} g5 {[%emt 0:15:47]} (29... Rd4 $17 {Threatens to win with ...Rd2+.} 30. Kb3 Nxc3 31. bxc3 (31. Rxc3 Rb8+ 32. Kc2 Re4 $17) 31... Re4) 30. Ra7 $15 {[%emt 0:01:52]} R4c7 {[%emt 0:00:08]} 31. Ra5 {[%emt 0:01:45] [#] White is on the road to losing.} (31. Rxc7 $15 Rxc7 32. Rf3) 31... Rf7 $1 $19 {[%emt 0:01:31]} 32. Re5 {[%emt 0:09:37] [#]} (32. Rd3 {is a better defense.}) 32... f3 $1 {[%emt 0:00:46]} 33. Rxf3 {[%emt 0:00:29]} (33. Rxe4 $2 {perishes.} f2 34. Rh5 f1=Q $19 (34... f1=R 35. Rxg5+ Kf8 36. Rh4 $16)) 33... Rxf3 {[%emt 0:00:02]} 34. Rxe4 {[%emt 0:00:05][%mdl 4096] Endgame. KRR-KRB} Rf2+ {[%emt 0:00:12]} 35. Kd3 {[%emt 0:00:50]} Rxh2 {[%emt 0:00:11]} 36. Re7 $2 {[%emt 0:00:19]} (36. a4 {might work better.}) 36... Kf8 {[%emt 0:03:59]} 37. Re5 {[%emt 0:03:28]} g4 {[%emt 0:00:39]} 38. Rg5 {[%emt 0:00:12]} h5 {[%emt 0:00:40]} 39. a4 {[%emt 0:00:29]} Rh3+ {[%emt 0:01:56]} 40. Kd4 {[%emt 0:01:45]} Kf7 {[%emt 0:01:58]} 41. Kd5 {[%emt 0:01:38]} Rcxc3 {[%emt 0:02:49]} 42. bxc3 {[%emt 0:00:11] KR-KR} Kf6 {[%emt 0:00:01]} ({Worse is} 42... Rxc3 43. Rxh5 Kg6 44. Rh8 $11) 43. Rg8 {[%emt 0:02:43]} Rxc3 {[%emt 0:00:06] Strongly threatening ...Ra3.} 44. a5 {[%emt 0:00:40]} Ra3 {[%emt 0:01:28]} 45. Ra8 {[%emt 0:00:12]} g3 {[%emt 0:00:44] Black mates.} 46. a6 {[%emt 0:00:44]} h4 {[%emt 0:02:37]} 47. Rg8 {[%emt 0:01:30]} h3 {[%emt 0:00:32] Weighted Error Value: White=0.40/Black=0.15 (very precise) .  Mistake:       	White=5     	Black=1      Inaccurate:     	---       	Black=1      OK:         	White=16    	Black=15     Best:        	White=2     	Black=3      Strong:       	---       	Black=3} 0-1

[Event "SixDays Budapest GM-C 10-2024"]
[Site "Budapest"]
[Date "2024.10.01"]
[Round "3.5"]
[White "Srihari L R"]
[Black "Borgaonkar Akshay"]
[Result "1/2-1/2"]
[ECO "B40"]
[WhiteElo "2503"]
[BlackElo "2415"]
[Annotator "TA"]
[PlyCount "119"]
[EventDate "2024.09.24"]
[EventType "tourn"]
[EventCountry "HUN"]
[SourceTitle "playchess.com"]
[Source "ChessBase"]
[SourceQuality "1"]
[TimeControl "5400+30"]

{[%evp 21,119,0,0,0,0,-4,0,-6,0,0,0,0,4,0,0,0,0,0,0,0,0,0,0,0,0,0,0,-10,0,0,0,0,0,-25,0,0,0,0,-9,-10,0,0,0,7,11,0,16,12,10,19,18,16,20,17,20,21,72,66,77,64,102,106,110,104,152,157,152,8,8,8,8,0,5,0,0,8,8,8,8,0,0,0,0,0,0,0,0,0,10,0,0,0,0,0,0,0,0,0,0,0]} 1. e4 {[%emt 0:07:59]} c5 {[%emt 0:00:33]} 2. Nf3 {[%emt 0:00:18]} e6 {[%emt 0:00:08]} 3. b3 {[%emt 0:00:05]} a6 {[%emt 0:00:28]} 4. Bb2 {[%emt 0:00:21]} d5 {[%emt 0:00:14]} 5. exd5 {[%emt 0:00:05]} exd5 {[%emt 0:00:06]} 6. Qe2+ {[%emt 0:00:04] B40: Sicilian: 2...e6, Unusual lines.} Be6 {[%emt 0:03:50]} 7. g3 {[%emt 0:00:02]} Nc6 {[%emt 0:00:36]} 8. Bh3 {[%emt 0:08:22]} Qe7 {[%emt 0:04:01]} 9. Bxe6 {[%emt 0:00:08]} Qxe6 {[%emt 0:01:19]} 10. Nc3 $146 {[%emt 0:00:49]} ({Predecessor:} 10. Qxe6+ fxe6 11. O-O Nf6 12. Re1 Kd7 13. Nc3 Re8 14. Na4 Bd6 15. c4 Nb4 16. Ne5+ Bxe5 17. Bxe5 {0-1 Yoo,C (2606)-Urazayev,A (2478) Titled Tuesday intern op 12th Sep Late blitz 2023 (10)}) 10... Nf6 {[%emt 0:11:40]} 11. O-O {[%emt 0:10:12]} d4 {[%emt 0:17:44]} 12. Qxe6+ {[%emt 0:16:02]} fxe6 {[%emt 0:00:12]} 13. Nb1 {[%emt 0:00:09]} Bd6 {[%emt 0:08:47]} 14. d3 {[%emt 0:02:47]} Kd7 {[%emt 0:06:37]} 15. Nbd2 {[%emt 0:00:56]} b5 {[%emt 0:05:24]} 16. Ng5 {[%emt 0:03:15]} Rhf8 {[%emt 0:01:53]} 17. Nge4 {[%emt 0:03:34]} Nxe4 {[%emt 0:02:01]} 18. Nxe4 {[%emt 0:00:13]} Nb4 {[%emt 0:03:10]} 19. a3 {[%emt 0:05:10]} Nd5 {[%emt 0:00:14]} (19... Nxc2 $2 {too greedy.} 20. Rac1 $18) 20. Rfe1 {[%emt 0:00:06]} e5 {[%emt 0:03:26]} 21. Re2 {[%emt 0:03:02]} Nf6 {[%emt 0:01:39]} 22. Nd2 {[%emt 0:01:33]} Kc6 {[%emt 0:02:37]} 23. Kg2 {[%emt 0:00:53]} Rf7 {[%emt 0:01:05]} 24. Nf3 {[%emt 0:00:53]} Re7 {[%emt 0:01:32]} 25. a4 {[%emt 0:02:02]} Kb7 {[%emt 0:02:04]} 26. Nh4 {[%emt 0:07:00]} g6 {[%emt 0:00:56]} 27. Bc1 {[%emt 0:00:06]} Nd5 {[%emt 0:01:37]} 28. Bd2 {[%emt 0:00:11]} Rae8 {[%emt 0:02:59]} 29. Rae1 {[%emt 0:03:48]} Kc6 {[%emt 0:01:25]} 30. Nf3 {[%emt 0:00:20]} Nb6 {[%emt 0:01:43]} 31. axb5+ {[%emt 0:03:09]} axb5 {[%emt 0:00:09]} 32. Bg5 {[%emt 0:00:05]} Re6 {[%emt 0:00:20]} 33. b4 {[%emt 0:00:03]} Na4 {[%emt 0:04:52]} 34. bxc5 {[%emt 0:01:19]} Nxc5 {[%emt 0:00:59]} 35. Bd2 {[%emt 0:01:34]} Kd5 {[%emt 0:00:59]} 36. Rb1 {[%emt 0:00:36]} Rb8 {[%emt 0:01:24]} 37. Ng5 {[%emt 0:01:03]} Re7 {[%emt 0:00:05]} 38. Bb4 {[%emt 0:00:40]} Na4 {[%emt 0:01:14]} (38... Nb7 $11) 39. Bxd6 $16 {[%emt 0:01:02]} Kxd6 {[%emt 0:00:06]} 40. Rbe1 $1 {[%emt 0:00:08]} Rbe8 {[%emt 0:05:57] [#]} 41. Ne4+ $1 {[%emt 0:00:55]} Kc6 {[%emt 0:00:05] [#]} 42. Nf6 $1 {[%emt 0:03:33]} Nc3 {[%emt 0:00:02]} (42... Ra8 $142) 43. Nxe8 $16 {[%emt 0:00:16]} Nxe2 {[%emt 0:00:02]} 44. Nf6 {[%emt 0:00:11]} ({White has to play} 44. Rxe2 $16 {aiming for Nf6.} Rxe8 45. f4) 44... Nc3 $11 {[%emt 0:00:14]} 45. f4 {[%emt 0:00:05]} Kd6 {[%emt 0:00:12]} 46. Ne4+ {[%emt 0:04:33]} Nxe4 {[%emt 0:05:09]} 47. Rxe4 {[%emt 0:00:34]} Rc7 {[%emt 0:00:23]} 48. fxe5+ {[%emt 0:01:52]} Ke6 {[%emt 0:00:42]} 49. Re2 {[%emt 0:00:01]} Rf7 $1 {[%emt 0:00:27]} 50. g4 {[%emt 0:02:24]} g5 {[%emt 0:00:41]} 51. h3 {[%emt 0:03:41]} Rc7 {[%emt 0:00:36]} 52. Kf3 {[%emt 0:00:30]} Rc5 {[%emt 0:00:14]} 53. Re4 {[%emt 0:01:34]} Rd5 {[%emt 0:01:08]} 54. Kg3 {[%emt 0:01:15]} Rd7 {[%emt 0:00:50]} 55. Kg2 {[%emt 0:00:45]} Rc7 {[%emt 0:00:33]} 56. Kf3 {[%emt 0:00:30]} Rxc2 {[%emt 0:00:22]} 57. Rxd4 {[%emt 0:00:01]} Rh2 {[%emt 0:00:40]} 58. Kg3 {[%emt 0:02:02]} Rd2 {[%emt 0:00:13]} 59. h4 {[%emt 0:03:59]} Kxe5 {[%emt 0:00:35]} 60. Rd7 {[%emt 0:00:01]} 1/2-1/2

[Event "SixDays Budapest GM-C 10-2024"]
[Site "Budapest"]
[Date "2024.10.02"]
[Round "4.1"]
[White "Pap, Gyula"]
[Black "Borgaonkar Akshay"]
[Result "1/2-1/2"]
[ECO "B40"]
[WhiteElo "2476"]
[BlackElo "2415"]
[Annotator "TA"]
[PlyCount "23"]
[EventDate "2024.09.24"]
[EventType "tourn"]
[EventCountry "HUN"]
[SourceTitle "playchess.com"]
[Source "ChessBase"]
[SourceQuality "1"]
[TimeControl "5400+30"]

{[%evp 18,23,22,34,37,25,34,5]} 1. e4 {[%emt 0:01:49]} c5 {[%emt 0:00:06]} 2. Nf3 {[%emt 0:00:12][%cal Bg1f3,Bf3d4,Bd4b5,Bb5c3][%mdl 32]} e6 {[%emt 0:00:04]} 3. d4 {[%emt 0:01:18]} cxd4 {[%emt 0:00:05]} 4. Nxd4 {[%emt 0:00:06]} Nf6 {[%emt 0:00:05]} 5. Nc3 {[%emt 0:00:27]} Nc6 {[%emt 0:00:06]} 6. Ndb5 {[%emt 0:00:52]} Bb4 {[%emt 0:00:09]} 7. a3 {[%emt 0:00:38]} Bxc3+ {[%emt 0:00:04]} 8. Nxc3 {[%emt 0:00:05]} d5 {[%emt 0:00:06]} 9. exd5 {[%emt 0:01:07]} exd5 {[%emt 0:00:05]} 10. Bd3 {[%emt 0:00:32]} O-O {[%emt 0:00:09]} 11. O-O {[%emt 0:00:11] Active counter play!} Bg4 {[%emt 0:00:06]} 12. Qd2 {[%emt 0:01:43] Weighted Error Value: White=0.00 (flawless) /Black=0.04 (flawless) .  Inaccurate:     	White=1     	---        OK:         	White=1     	---} (12. f3 $5 Qb6+ 13. Rf2 $11) 1/2-1/2

[Event "SixDays Budapest GM-C 10-2024"]
[Site "Budapest"]
[Date "2024.10.02"]
[Round "4.2"]
[White "Mohammad Fahad, Rahman"]
[Black "Srihari L R"]
[Result "1-0"]
[ECO "D37"]
[WhiteElo "2419"]
[BlackElo "2503"]
[Annotator "TA"]
[PlyCount "91"]
[EventDate "2024.09.24"]
[EventType "tourn"]
[EventCountry "HUN"]
[SourceTitle "playchess.com"]
[Source "ChessBase"]
[SourceQuality "1"]
[TimeControl "5400+30"]

{[%evp 14,91,21,10,12,0,63,57,64,40,62,55,58,56,96,16,24,5,29,22,47,23,51,50,47,56,93,42,68,73,87,90,87,69,145,154,191,180,224,258,314,308,329,258,241,235,512,524,522,483,551,563,785,773,790,769,921,917,950,933,947,922,1153,718,773,756,1116,737,753,706,29969,1115,29975,29970,29982,29983,29987,29988,29988,29989]} 1. d4 {[%emt 0:09:12]} Nf6 {[%emt 0:00:26]} 2. c4 {[%emt 0:00:21]} e6 {[%emt 0:00:06]} 3. Nf3 {[%emt 0:00:26]} d5 {[%emt 0:01:16]} 4. Nc3 {[%emt 0:00:09]} Nbd7 {[%emt 0:02:18]} 5. Bf4 {[%emt 0:01:08]} Bb4 {[%emt 0:03:19]} 6. cxd5 {[%emt 0:00:37]} exd5 {[%emt 0:02:31]} 7. e3 {[%emt 0:00:40]} Ne4 {[%emt 0:01:06] D35: Queen's Gambit Declined: Exchange Variation.} 8. Qc2 {[%emt 0:01:07]} g5 9. Bg3 {[%emt 0:01:33]} c6 {[%emt 0:06:49]} ({Black should play} 9... h5 $11 10. h4 Bxc3+ 11. bxc3 Nxg3 12. fxg3 gxh4) 10. Bd3 $14 {[%emt 0:02:23]} f5 $146 {[%emt 0:10:32]} ({Predecessor:} 10... Nxg3 11. hxg3 h6 12. a3 Bd6 13. e4 dxe4 14. Nxe4 Be7 15. O-O-O Nb6 16. Rhe1 Nd5 {1-0 Vorobiov,E (2409)-Zhapova,Y (2183) Cheliabinsk Kurnosov Memorial Rapid 2024 (3)}) 11. O-O {[%emt 0:03:21]} h5 {[%emt 0:06:29]} 12. h4 {[%emt 0:07:10]} gxh4 $1 {[%emt 0:08:59]} 13. Nxh4 {[%emt 0:07:21]} Nf8 {[%emt 0:00:17]} 14. Qd1 {[%emt 0:14:25]} (14. Bxe4 $16 fxe4 15. f3) 14... Be7 $11 {[%emt 0:07:30]} 15. Be5 {[%emt 0:02:42]} Rh7 {[%emt 0:00:22]} 16. Nf3 $1 {[%emt 0:00:11]} Be6 {[%emt 0:00:35]} 17. Ne2 {[%emt 0:01:02]} h4 {[%emt 0:10:12]} 18. Nf4 {[%emt 0:00:35]} Bf7 {[%emt 0:00:02]} 19. Qc2 {[%emt 0:06:03]} Qd7 {[%emt 0:07:57]} 20. a3 {[%emt 0:08:30]} (20. b4 $16) 20... Ne6 {[%emt 0:05:13]} 21. b4 {[%emt 0:01:56]} a6 {[%emt 0:05:22]} 22. Nh3 {[%emt 0:03:13]} Bh5 {[%emt 0:01:09]} 23. Bh2 {[%emt 0:00:29]} Bf6 {[%emt 0:06:14]} (23... Bxf3 $14 24. gxf3 Bd6) 24. Ne5 $16 {[%emt 0:00:10]} Bxe5 {[%emt 0:02:27]} 25. Bxe5 {[%emt 0:00:07]} Bg6 {[%emt 0:03:30]} 26. a4 {[%emt 0:05:39]} Ke7 {[%emt 0:05:04]} 27. f3 {[%emt 0:01:12]} N4g5 {[%emt 0:00:19]} 28. Nf4 {[%emt 0:00:10]} (28. Bxf5 Nxh3+ 29. Kh2 (29. gxh3 Bxf5 30. Qxf5 Rg8+ 31. Kf2 Rf7 $11) 29... Bxf5 30. Qxf5 Nhg5 $18) 28... Nxf4 {[%emt 0:00:57]} 29. exf4 {[%emt 0:00:09]} Ne6 $2 {[%emt 0:00:04]} (29... Nf7 30. b5 axb5 31. axb5 Rc8 32. bxc6 Rxc6) 30. Bxf5 $18 {[%emt 0:01:32]} Bxf5 {[%emt 0:00:33]} 31. Qxf5 {[%emt 0:00:02]} Rf7 {[%emt 0:01:14]} 32. Qg4 {[%emt 0:00:39]} Raf8 {[%emt 0:00:07]} 33. Qxh4+ {[%emt 0:01:37]} Ke8 {[%emt 0:00:02]} 34. Rfe1 {[%emt 0:01:34]} Qe7 {[%emt 0:00:13]} 35. Qg4 {[%emt 0:01:36]} Rf5 {[%emt 0:00:46]} 36. b5 {[%emt 0:01:31]} cxb5 {[%emt 0:00:45]} 37. axb5 {[%emt 0:00:14]} axb5 {[%emt 0:00:06]} 38. Reb1 {[%emt 0:05:49]} b4 {[%emt 0:00:22]} 39. Ra4 {[%emt 0:00:45]} Qh7 {[%emt 0:02:27]} 40. Raxb4 {[%emt 0:01:29]} Nd8 {[%emt 0:00:39]} 41. Re1 {[%emt 0:02:16]} Kf7 {[%emt 0:02:09]} 42. Rc1 {[%emt 0:01:35]} (42. Rb6 $142 Re8 43. Rh6 (43. Qxf5+ $2 Qxf5 44. Rd6 Ne6 $19) 43... Qxh6 44. Qxf5+ Kg8 45. Qg4+ Kf7 46. Qd7+ Re7 47. Qxd8) 42... Re8 {[%emt 0:00:20]} 43. Rb6 {[%emt 0:00:20]} Re7 {[%emt 0:00:31]} 44. Rc8 {[%emt 0:01:33]} (44. Qxf5+ Qxf5 45. Rh6 Nc6 46. Rf6+ Qxf6 47. Bxf6 Kxf6 $17) 44... Ne6 {[%emt 0:00:38]} 45. Rh8 {[%emt 0:00:31]} Qg6 {[%emt 0:00:05]} 46. Rf8+ {[%emt 0:00:15]} 1-0

[Event "SixDays Budapest GM-C 10-2024"]
[Site "Budapest"]
[Date "2024.10.02"]
[Round "4.3"]
[White "Pacher, Milan"]
[Black "Laddha, Shubh Jayesh"]
[Result "1/2-1/2"]
[ECO "D26"]
[WhiteElo "2343"]
[BlackElo "2308"]
[Annotator "RC"]
[PlyCount "193"]
[EventDate "2024.09.24"]
[EventType "tourn"]
[EventCountry "HUN"]
[SourceTitle "playchess.com"]
[Source "ChessBase"]
[SourceQuality "1"]
[TimeControl "5400+30"]

1. d4 {[%emt 0:14:27]} d5 {[%emt 0:00:05]} 2. c4 {[%emt 0:00:02]} dxc4 {[%emt 0:00:04]} 3. e3 {[%emt 0:00:04]} Nf6 {[%emt 0:00:29]} 4. Bxc4 {[%emt 0:00:04]} e6 {[%emt 0:00:31]} 5. Nf3 {[%emt 0:00:04]} c5 {[%emt 0:00:07]} 6. O-O {[%emt 0:00:04]} Nc6 {[%emt 0:00:13]} 7. Nc3 {[%emt 0:00:56]} a6 {[%emt 0:00:15]} 8. dxc5 {[%emt 0:00:19]} Qxd1 {[%emt 0:00:32]} 9. Rxd1 {[%emt 0:00:05]} Bxc5 {[%emt 0:00:06]} 10. a3 {[%emt 0:00:05]} O-O {[%emt 0:01:39]} 11. b4 {[%emt 0:00:07]} Be7 {[%emt 0:05:26]} 12. Bb2 {[%emt 0:00:05]} b5 {[%emt 0:06:47]} 13. Be2 {[%emt 0:00:03]} Bb7 {[%emt 0:06:41]} 14. Nd2 {[%emt 0:01:09]} Rfd8 {[%emt 0:09:21]} 15. Nb3 {[%emt 0:02:16]} Nd7 {[%emt 0:08:37]} 16. Ne4 {[%emt 0:03:37]} Nxb4 {[%emt 0:10:04]} 17. Nd6 {[%emt 0:00:05]} Bd5 {[%emt 0:06:24]} 18. axb4 {[%emt 0:00:07]} Bxb3 {[%emt 0:02:10]} 19. Rd3 {[%emt 0:02:54]} Nb6 {[%emt 0:04:30]} 20. Rxb3 {[%emt 0:05:44]} Rxd6 {[%emt 0:01:12]} 21. Bd4 {[%emt 0:00:32]} Bf6 {[%emt 0:04:15]} 22. Rba3 {[%emt 0:00:48]} Bxd4 {[%emt 0:02:08]} 23. exd4 {[%emt 0:00:02]} Na4 {[%emt 0:02:26]} 24. Bd1 {[%emt 0:00:04]} Rxd4 {[%emt 0:02:57]} 25. Bxa4 {[%emt 0:00:03]} bxa4 {[%emt 0:00:04]} 26. Rxa4 {[%emt 0:00:02]} g6 {[%emt 0:00:55]} 27. g3 {[%emt 0:00:06]} Rb8 {[%emt 0:01:57]} 28. h4 {[%emt 0:00:09]} h5 {[%emt 0:01:24]} 29. Kg2 {[%emt 0:00:53]} Rb5 {[%emt 0:00:33]} 30. R1a3 {[%emt 0:00:37]} Kg7 {[%emt 0:06:30]} 31. Rxa6 {[%emt 0:00:08]} Rdxb4 {[%emt 0:00:52]} 32. R6a4 {[%emt 0:00:21]} Rb2 {[%emt 0:00:42]} 33. Ra2 {[%emt 0:00:02]} R2b3 {[%emt 0:00:08]} 34. R2a3 {[%emt 0:00:02]} Rxa3 35. Rxa3 {[%emt 0:00:02]} Kf6 {[%emt 0:03:06]} 36. Rf3+ {[%emt 0:00:04]} Rf5 {[%emt 0:00:12]} 37. Ra3 {[%emt 0:00:03]} Rd5 {[%emt 0:00:15]} 38. Rf3+ {[%emt 0:00:04]} Ke7 {[%emt 0:00:08]} 39. Ra3 {[%emt 0:00:02]} e5 {[%emt 0:00:42]} 40. Ra4 {[%emt 0:00:18]} Ke6 {[%emt 0:01:01]} 41. Ra6+ {[%emt 0:00:05]} Rd6 {[%emt 0:00:15]} 42. Ra7 {[%emt 0:00:21]} f6 {[%emt 0:00:26]} 43. Rb7 {[%emt 0:00:54]} Kf5 {[%emt 0:00:25]} 44. Rb4 {[%emt 0:00:08]} Rd3 {[%emt 0:01:20]} 45. Rb6 {[%emt 0:00:08]} Ra3 {[%emt 0:01:07]} 46. Rc6 {[%emt 0:00:26]} Ra2 {[%emt 0:01:31]} 47. Rb6 {[%emt 0:00:12]} Rd2 {[%emt 0:00:54]} 48. Kf3 {[%emt 0:00:18]} e4+ {[%emt 0:01:52]} 49. Ke3 {[%emt 0:00:02]} Rd3+ {[%emt 0:00:13]} 50. Ke2 {[%emt 0:00:02]} Rf3 {[%emt 0:01:20]} 51. Rb4 {[%emt 0:02:03]} Rd3 {[%emt 0:02:12]} 52. Rb6 {[%emt 0:01:43]} Rf3 {[%emt 0:01:04]} 53. Rb4 {[%emt 0:00:04]} Ra3 {[%emt 0:01:13]} 54. Rb6 {[%emt 0:00:29]} Ra2+ {[%emt 0:00:30]} 55. Ke3 {[%emt 0:00:07]} Ra3+ {[%emt 0:00:03]} 56. Ke2 {[%emt 0:00:03]} Ra5 {[%emt 0:00:04]} 57. Ke3 {[%emt 0:00:17]} Rd5 {[%emt 0:00:59]} 58. Ra6 {[%emt 0:00:25]} Rb5 {[%emt 0:01:12]} 59. Rc6 {[%emt 0:00:30]} Ra5 {[%emt 0:00:03]} 60. Rb6 {[%emt 0:00:04]} g5 {[%emt 0:01:06]} 61. hxg5 {[%emt 0:00:06]} fxg5 {[%emt 0:00:06]} 62. Rh6 {[%emt 0:01:37]} Ra3+ {[%emt 0:00:37]} 63. Ke2 {[%emt 0:00:02]} Ra2+ {[%emt 0:00:50]} 64. Ke3 {[%emt 0:00:32]} Ra3+ {[%emt 0:02:52]} 65. Ke2 {[%emt 0:00:05]} Kg4 {[%emt 0:01:01]} 66. Re6 {[%emt 0:00:23]} Ra4 {[%emt 0:01:49]} 67. Re8 {[%emt 0:01:00]} Rb4 {[%emt 0:00:57]} 68. Kf1 {[%emt 0:00:31]} Kh3 {[%emt 0:01:20]} 69. Re5 {[%emt 0:00:05]} Kg4 {[%emt 0:01:09]} 70. Kg2 {[%emt 0:00:21]} Ra4 {[%emt 0:00:27]} 71. Re8 {[%emt 0:00:12]} Rc4 {[%emt 0:00:31]} 72. Re7 {[%emt 0:00:03]} Kf5 {[%emt 0:00:15]} 73. Rf7+ {[%emt 0:00:07]} Kg6 {[%emt 0:00:17]} 74. Re7 {[%emt 0:00:04]} Kf6 {[%emt 0:00:08]} 75. Re8 {[%emt 0:00:13]} Kf7 {[%emt 0:00:11]} 76. Re5 {[%emt 0:00:04]} Kf6 {[%emt 0:00:02]} 77. Re8 {[%emt 0:00:02]} Ra4 {[%emt 0:00:09]} 78. Rf8+ {[%emt 0:00:17]} Kg7 {[%emt 0:00:04]} 79. Re8 {[%emt 0:00:08]} Kf7 {[%emt 0:00:07]} 80. Re5 {[%emt 0:00:05]} Kf6 {[%emt 0:00:03]} 81. Re8 {[%emt 0:00:03]} g4 {[%emt 0:01:41]} 82. Rf8+ {[%emt 0:00:12]} Kg7 {[%emt 0:00:11]} 83. Re8 {[%emt 0:00:09]} Rd4 {[%emt 0:00:09]} 84. Re5 {[%emt 0:00:07]} Kg6 {[%emt 0:00:05]} 85. Re6+ {[%emt 0:00:04]} Kf5 {[%emt 0:00:08]} 86. Re8 {[%emt 0:00:15]} Rd2 {[%emt 0:00:15]} 87. Rf8+ {[%emt 0:00:05]} Ke5 {[%emt 0:00:21]} 88. Ra8 {[%emt 0:01:13]} Rc2 {[%emt 0:00:40]} 89. Rd8 {[%emt 0:00:16]} Rc5 {[%emt 0:00:14]} 90. Kg1 {[%emt 0:00:36]} Rd5 {[%emt 0:00:09]} 91. Ra8 {[%emt 0:00:03]} Rd1+ {[%emt 0:00:50]} 92. Kg2 {[%emt 0:00:02]} Rd2 {[%emt 0:00:09]} 93. Kf1 {[%emt 0:00:55]} Rc2 {[%emt 0:01:14]} 94. Rh8 {[%emt 0:00:52]} Kd4 {[%emt 0:00:38]} 95. Rd8+ {[%emt 0:00:06]} Ke5 {[%emt 0:00:26]} 96. Re8+ {[%emt 0:00:06]} Kf5 {[%emt 0:00:04]} 97. Rf8+ {[%emt 0:00:16]} 1/2-1/2